fUST/lending_fUST_20241003
["ID","MTS","AMOUNT","RATE_DAILY","PERIOD"]
[339744754,1727928646231,-934.261592,0.00013658,2]
[339744755,1727928646241,-934.261592,0.00013658,2]
[339744756,1727928646250,-934.261592,0.00013658,2]
[339744757,1727928646261,-934.261592,0.00013658,2]
[339744758,1727928646271,-238.054595,0.00013658,2]
[339744759,1727928646281,-238.054595,0.00013658,2]
[339744760,1727928646291,-238.054595,0.00013658,2]
[339744761,1727928646301,-151.0,0.00013658,2]
[339744762,1727928646311,-238.054595,0.00013658,2]
[339744763,1727928646321,-153.552822,0.00013658,2]
[339744764,1727928646333,-151.0,0.00013658,2]
[339744765,1727928646344,-151.0,0.00013658,2]
[339744767,1727928646353,-151.0,0.00013658,2]
[339744770,1727928646364,-151.0,0.00013658,2]
[339744772,1727928646375,-151.970631,0.00013658,2]
[339744774,1727928646384,-151.0,0.00013658,2]
[339744776,1727928646395,-151.0,0.00013658,2]
[339744778,1727928646407,-151.0,0.00013658,2]
[339744780,1727928646417,-151.0,0.00013658,2]
[339744782,1727928646429,-537.685328,0.00013658,2]
[339744784,1727928646439,-537.685328,0.00013658,2]
[339744786,1727928646450,-537.685328,0.00013658,2]
[339744788,1727928646460,-537.685328,0.00013658,2]
[339744789,1727928646471,-164.853759,0.00013658,2]
[339744790,1727928646482,-151.0,0.00013658,2]
[339744791,1727928646492,-151.0,0.00013658,2]
[339744792,1727928646501,-173.384172,0.00013658,2]
[339744793,1727928646511,-173.384172,0.00013658,2]
[339744794,1727928646522,-1016.795797,0.00013658,2]
[339744795,1727928646531,-173.384172,0.00013658,2]
[339744796,1727928646541,-1016.795797,0.00013658,2]
[339744797,1727928646551,-173.384172,0.00013658,2]
[339744798,1727928646561,-243.260697,0.00013658,2]
[339744799,1727928646572,-243.260697,0.00013658,2]
[339744800,1727928646582,-1016.795797,0.00013658,2]
[339744801,1727928646593,-1016.795797,0.00013658,2]
[339744802,1727928646604,-243.260697,0.00013658,2]
[339744803,1727928646614,-243.260697,0.00013658,2]
[339744804,1727928646626,-227.933469,0.00013658,2]
[339744805,1727928646636,-227.933469,0.00013658,2]
[339744806,1727928646647,-227.933469,0.00013658,2]
[339744807,1727928646657,-227.933469,0.00013658,2]
[339744808,1727928646667,-151.0,0.00013658,2]
[339744809,1727928646681,-231.87356,0.00013658,2]
[339744810,1727928646690,-347.593815,0.00013658,2]
[339744811,1727928646700,-347.593815,0.00013658,2]
[339744812,1727928646710,-347.593815,0.00013658,2]
[339744813,1727928646720,-347.593815,0.00013658,2]
[339744814,1727928646730,-373.59827,0.00013658,2]
[339744815,1727928646741,-373.59827,0.00013658,2]
[339744816,1727928646751,-373.59827,0.00013658,2]
[339744817,1727928646761,-373.59827,0.00013658,2]
[339744818,1727928646771,-24821.2154637,0.00013658,2]
[339744819,1727928646782,-151.0,0.00013659,2]
[339744820,1727928646792,-154.634957,0.00013659,2]
[339744821,1727928646802,-934.261592,0.00013659,2]
[339744822,1727928646811,-934.261592,0.00013659,2]
[339744823,1727928646821,-238.054595,0.00013659,2]
[339744824,1727928646831,-238.054595,0.00013659,2]
[339744825,1727928646841,-151.0,0.00013659,2]
[339744826,1727928646850,-151.0,0.00013659,2]
[339744827,1727928646860,-151.0,0.00013659,2]
[339744828,1727928646869,-151.0,0.00013659,2]
[339744829,1727928646879,-537.685328,0.00013659,2]
[339744830,1727928646889,-537.685328,0.00013659,2]
[339744831,1727928646899,-151.0,0.00013659,2]
[339744832,1727928647143,-173.384172,0.00013659,2]
[339744833,1727928647156,-1016.795797,0.00013659,2]
[339744834,1727928647165,-173.384172,0.00013659,2]
[339744835,1727928647175,-243.260697,0.00013659,2]
[339744836,1727928647184,-1016.795797,0.00013659,2]
[339744837,1727928647193,-243.260697,0.00013659,2]
[339744838,1727928647203,-151.0,0.00013659,2]
[339744839,1727928647212,-151.0,0.00013659,2]
[339744840,1727928647221,-227.933469,0.00013659,2]
[339744841,1727928647232,-227.933469,0.00013659,2]
[339744842,1727928647241,-347.593815,0.00013659,2]
[339744843,1727928647251,-347.593815,0.00013659,2]
[339744844,1727928647260,-373.59827,0.00013659,2]
[339744845,1727928647269,-373.59827,0.00013659,2]
[339744846,1727928647278,-15828.976316,0.00013659,2]
[339744847,1727928647288,-293.327827,0.0001366,2]
[339744848,1727928647297,-151.0,0.0001366,2]
[339744849,1727928647306,-151.0,0.0001366,2]
[339744850,1727928647316,-173.384172,0.0001366,2]
[339744851,1727928647325,-1016.795797,0.0001366,2]
[339744852,1727928647338,-173.384172,0.0001366,2]
[339744853,1727928647348,-243.260697,0.0001366,2]
[339744854,1727928647357,-1016.795797,0.0001366,2]
[339744855,1727928647368,-243.260697,0.0001366,2]
[339744856,1727928647380,-227.933469,0.0001366,2]
[339744857,1727928647398,-227.933469,0.0001366,2]
[339744858,1727928647415,-347.593815,0.0001366,2]
[339744859,1727928647426,-347.593815,0.0001366,2]
[339744860,1727928647436,-373.59827,0.0001366,2]
[339744861,1727928647445,-373.59827,0.0001366,2]
[339744862,1727928647455,-151.0,0.00013661,2]
[339744863,1727928647464,-151.0,0.00013661,2]
[339744864,1727928647473,-151.0,0.00013661,2]
[339744865,1727928647485,-934.261592,0.00013661,2]
[339744866,1727928647494,-934.261592,0.00013661,2]
[339744867,1727928647504,-934.261592,0.00013661,2]
[339744868,1727928647514,-934.261592,0.00013661,2]
[339744869,1727928647523,-934.261592,0.00013661,2]
[339744870,1727928647532,-934.261592,0.00013661,2]
[339744871,1727928647542,-238.054595,0.00013661,2]
[339744872,1727928647552,-238.054595,0.00013661,2]
[339744873,1727928647561,-238.054595,0.00013661,2]
[339744874,1727928647571,-238.054595,0.00013661,2]
[339744875,1727928647580,-238.054595,0.00013661,2]
[339744876,1727928647589,-238.054595,0.00013661,2]
[339744877,1727928647598,-151.0,0.00013661,2]
[339744878,1727928647607,-151.0,0.00013661,2]
[339744879,1727928647616,-151.0,0.00013661,2]
[339744880,1727928647625,-151.0,0.00013661,2]
[339744881,1727928647635,-151.0,0.00013661,2]
[339744882,1727928647645,-151.0,0.00013661,2]
[339744883,1727928647654,-537.685328,0.00013661,2]
[339744884,1727928647663,-537.685328,0.00013661,2]
[339744885,1727928647673,-537.685328,0.00013661,2]
[339744886,1727928647682,-537.685328,0.00013661,2]
[339744887,1727928647691,-537.685328,0.00013661,2]
[339744888,1727928647700,-537.685328,0.00013661,2]
[339744889,1727928647709,-151.0,0.00013661,2]
[339744890,1727928647719,-151.0,0.00013661,2]
[339744891,1727928647731,-173.384172,0.00013661,2]
[339744892,1727928647740,-173.384172,0.00013661,2]
[339744893,1727928647749,-1016.795797,0.00013661,2]
[339744894,1727928647758,-1016.795797,0.00013661,2]
[339744895,1727928647767,-173.384172,0.00013661,2]
[339744896,1727928647778,-173.384172,0.00013661,2]
[339744897,1727928647788,-243.260697,0.00013661,2]
[339744898,1727928647799,-243.260697,0.00013661,2]
[339744899,1727928647809,-1016.795797,0.00013661,2]
[339744900,1727928647818,-1016.795797,0.00013661,2]
[339744901,1727928647828,-243.260697,0.00013661,2]
[339744902,1727928647839,-243.260697,0.00013661,2]
[339744903,1727928647850,-151.0,0.00013661,2]
[339744904,1727928647860,-227.933469,0.00013661,2]
[339744905,1727928647870,-227.933469,0.00013661,2]
[339744906,1727928647880,-227.933469,0.00013661,2]
[339744907,1727928647889,-227.933469,0.00013661,2]
[339744908,1727928647899,-347.593815,0.00013661,2]
[339744909,1727928647908,-347.593815,0.00013661,2]
[339744910,1727928647918,-347.593815,0.00013661,2]
[339744911,1727928647927,-347.593815,0.00013661,2]
[339744912,1727928647937,-373.59827,0.00013661,2]
[339744913,1727928647947,-373.59827,0.00013661,2]
[339744914,1727928647957,-373.59827,0.00013661,2]
[339744915,1727928647968,-373.59827,0.00013661,2]
[339744916,1727928647978,-151.0,0.00013667,2]
[339744917,1727928647987,-151.0,0.00013667,2]
[339744918,1727928647997,-151.0,0.00013667,2]
[339744919,1727928648005,-151.0,0.00013667,2]
[339744920,1727928648015,-151.0,0.00013667,2]
[339744921,1727928648025,-151.0,0.00013667,2]
[339744922,1727928648034,-151.0,0.00013667,2]
[339744923,1727928648043,-151.0,0.00013667,2]
[339744924,1727928648052,-151.0,0.00013667,2]
[339744925,1727928648063,-151.0,0.00013667,2]
[339744926,1727928648073,-316.789714,0.00013667,2]
[339744927,1727928648082,-316.789714,0.00013667,2]
[339744928,1727928648091,-316.789714,0.00013667,2]
[339744929,1727928648101,-316.789714,0.00013667,2]
[339744930,1727928648110,-316.789714,0.00013667,2]
[339744931,1727928648119,-316.789714,0.00013667,2]
[339744932,1727928648130,-316.789714,0.00013667,2]
[339744933,1727928648140,-316.789714,0.00013667,2]
[339744934,1727928648149,-198.042724,0.00013667,2]
[339744935,1727928648160,-198.042724,0.00013667,2]
[339744936,1727928648171,-198.042724,0.00013667,2]
[339744937,1727928648181,-198.042724,0.00013667,2]
[339744938,1727928648191,-151.0,0.00013667,2]
[339744939,1727928648204,-151.0,0.00013667,2]
[339744940,1727928648214,-151.0,0.00013667,2]
[339744941,1727928648225,-151.0,0.00013667,2]
[339744942,1727928648234,-151.0,0.00013667,2]
[339744943,1727928648243,-151.0,0.00013667,2]
[339744944,1727928648254,-151.0,0.00013667,2]
[339744945,1727928648263,-155.520297,0.00013667,2]
[339744946,1727928648273,-198.042724,0.00013667,2]
[339744947,1727928648283,-198.042724,0.00013667,2]
[339744948,1727928648292,-198.042724,0.00013667,2]
[339744949,1727928648302,-198.042724,0.00013667,2]
[339744950,1727928648311,-151.0,0.00013667,2]
[339744951,1727928648321,-153.006915,0.00013667,2]
[339744952,1727928648334,-160.745012,0.00013667,2]
[339744953,1727928648343,-160.745012,0.00013667,2]
[339744954,1727928648353,-160.745012,0.00013667,2]
[339744955,1727928648362,-160.745012,0.00013667,2]
[339744956,1727928648372,-1635.234314,0.00013667,2]
[339744957,1727928648383,-1635.234314,0.00013667,2]
[339744958,1727928648392,-1635.234314,0.00013667,2]
[339744959,1727928648401,-1635.234314,0.00013667,2]
[339744960,1727928648411,-160.745012,0.00013667,2]
[339744961,1727928648420,-1635.234314,0.00013667,2]
[339744962,1727928648430,-160.745012,0.00013667,2]
[339744963,1727928648439,-151.0,0.00013667,2]
[339744964,1727928648448,-160.745012,0.00013667,2]
[339744965,1727928648458,-151.0,0.00013667,2]
[339744966,1727928648467,-160.745012,0.00013667,2]
[339744967,1727928648477,-151.0,0.00013667,2]
[339744968,1727928648486,-151.0,0.00013667,2]
[339744969,1727928648495,-151.0,0.00013667,2]
[339744970,1727928648505,-151.0,0.00013667,2]
[339744971,1727928648515,-151.0,0.00013667,2]
[339744972,1727928648525,-1635.234314,0.00013667,2]
[339744973,1727928648534,-151.0,0.00013667,2]
[339744974,1727928648544,-1635.234314,0.00013667,2]
[339744975,1727928648553,-1635.234314,0.00013667,2]
[339744976,1727928648562,-1635.234314,0.00013667,2]
[339744977,1727928648571,-1635.234314,0.00013667,2]
[339744978,1727928648580,-363.23506,0.00013667,2]
[339744979,1727928648590,-363.23506,0.00013667,2]
[339744980,1727928648599,-363.23506,0.00013667,2]
[339744981,1727928648608,-363.23506,0.00013667,2]
[339744982,1727928648618,-363.23506,0.00013667,2]
[339744983,1727928648627,-363.23506,0.00013667,2]
[339744984,1727928648637,-363.23506,0.00013667,2]
[339744985,1727928648646,-363.23506,0.00013667,2]
[339744986,1727928648655,-363.23506,0.00013667,2]
[339744987,1727928648664,-2935.271083,0.00013667,2]
[339744988,1727928648674,-2935.271083,0.00013667,2]
[339744989,1727928648683,-2935.271083,0.00013667,2]
[339744990,1727928648693,-2935.271083,0.00013667,2]
[339744991,1727928648702,-2935.271083,0.00013667,2]
[339744992,1727928648711,-991.15431152,0.00013667,2]
[339744993,1727928728595,500.0,0.00011164,2]
[339744994,1727929484786,207.0,0.000209,120]
[339744996,1727929541117,-166.709557,0.00012463,2]
[339744997,1727929541144,-189.538033,0.00012558,2]
[339744998,1727929541167,-189.538033,0.0001259,2]
[339744999,1727929541189,-690.540217,0.00012603,2]
[339745000,1727929541211,-189.538033,0.00012621,2]
[339745001,1727929541236,-166.709557,0.00012679,2]
[339745002,1727929541260,-166.709557,0.00012896,2]
[339745003,1727929541283,-166.709557,0.00013112,2]
[339745004,1727929541306,-606.7001323,0.000132,2]
[339745005,1727929541327,-151.0,0.00013648,2]
[339745006,1727929541354,-151.0,0.00013651,2]
[339745007,1727929541376,-150.0,0.00013655,2]
[339745008,1727929541397,-151.0,0.00013657,2]
[339745009,1727929541420,-151.0,0.00013657,2]
[339745010,1727929541443,-38.43211726,0.00013657,2]
[339745011,1727929558107,-269.28754294,0.00013558,2]
[339745022,1727929826185,1671.7257578,0.00010205,2]
[339745023,1727929826205,3328.2742422,0.00010205,2]
[339745061,1727929838100,-500.0,0.0001311,2]
[339745062,1727929838110,-300.0,0.0001354,2]
[339745063,1727929838119,-275.45201486,0.00013541,2]
[339745064,1727929838129,-1625.77766063,0.00013541,2]
[339745067,1727929840099,-1218.0,0.00013391,2]
[339745068,1727929840109,-9662.62256665,0.00013541,2]
[339745069,1727929840162,-3192.48866919,0.00013541,2]
[339745070,1727929840222,-3450.7023123,0.00013541,2]
[339745071,1727929840233,-506.51297748,0.00013541,2]
[339745072,1727929841485,316.42299689,0.00010205,2]
[339745073,1727929841507,2511.32914852,0.00010205,2]
[339745077,1727929843355,-1052.61674957,0.00013541,2]
[339745078,1727929843482,-29.9208381,0.00013541,2]
[339745084,1727929846193,-1708.68073843,0.00013541,2]
[339745098,1727929890938,500.0,0.00012124,2]
[339745099,1727929912126,500.0,0.00011517,2]
[339745100,1727929933216,73.17674701,0.00010941,2]
[339745101,1727929933242,519.8711413,0.00010941,2]
[339745102,1727929954797,267.19342666,0.00021,120]
[339745107,1727930550277,190.0,0.000209,120]
[339745113,1727930746262,-180.2065016,0.00011341,2]
[339745114,1727930746285,-656.013206,0.00012603,2]
[339745115,1727930746308,-185.35916345,0.0001273,2]
[339745119,1727930829441,-314.64083655,0.0001273,2]
[339745120,1727930829464,-1229.99124235,0.000129,2]
[339745121,1727930836199,-225.85848448,0.000129,2]
[339745123,1727930949463,-301.43026992,0.00012124,2]
[339745124,1727931005209,686.4,0.00010959,2]
[339745169,1727931038323,-2404.89642725,0.000129,2]
[339745170,1727931038334,-300.0,0.00012998,2]
[339745171,1727931038344,-22164.28851127,0.00012999,2]
[339745172,1727931038354,-321.24822169,0.00012999,2]
[339745173,1727931038370,-33688.00142528,0.00013,2]
[339745174,1727931038380,-35672.733555,0.00013,2]
[339745175,1727931038390,-500.0,0.0001311,2]
[339745176,1727931038401,-600.50812253,0.00013277,2]
[339745177,1727931038412,-500.0,0.00013366,2]
[339745178,1727931038422,-2073.690647,0.00013506,2]
[339745179,1727931038432,-185.260702,0.00013506,2]
[339745180,1727931038443,-150.0,0.00013554,2]
[339745181,1727931038452,-1000.0,0.00013558,2]
[339745182,1727931038463,-184625.1782374,0.00013561,2]
[339745183,1727931038472,-467.12843631,0.00013578,2]
[339745184,1727931038481,-150.112233,0.000136,2]
[339745185,1727931038490,-150.112233,0.000136,2]
[339745186,1727931038498,-150.112233,0.000136,2]
[339745187,1727931038511,-150.112233,0.000136,2]
[339745188,1727931038520,-150.112233,0.000136,2]
[339745189,1727931038529,-150.112233,0.000136,2]
[339745190,1727931038537,-150.112233,0.000136,2]
[339745191,1727931038547,-150.112233,0.000136,2]
[339745192,1727931038556,-500.0,0.0001361,2]
[339745193,1727931038565,-29676.0446421,0.00013627,2]
[339745194,1727931038575,-10800.2680376,0.00013627,2]
[339745195,1727931038584,-11504.69676239,0.00013647,2]
[339745196,1727931038593,-151.0,0.00013647,2]
[339745197,1727931038604,-227.077203,0.00013647,2]
[339745198,1727931038614,-227.077203,0.00013647,2]
[339745199,1727931038623,-29676.0446421,0.00013647,2]
[339745200,1727931038633,-10800.2680376,0.00013647,2]
[339745201,1727931038643,-29676.0446421,0.00013648,2]
[339745202,1727931038652,-10800.2680376,0.00013648,2]
[339745203,1727931038662,-151.0,0.00013648,2]
[339745204,1727931038671,-151.0,0.00013648,2]
[339745205,1727931038680,-227.077203,0.00013648,2]
[339745206,1727931038689,-227.077203,0.00013648,2]
[339745207,1727931038699,-227.077203,0.00013648,2]
[339745208,1727931038709,-227.077203,0.00013648,2]
[339745209,1727931038718,-29676.0446421,0.00013648,2]
[339745210,1727931038727,-10800.2680376,0.00013648,2]
[339745211,1727931038736,-1271.851053,0.00013657,2]
[339745212,1727931038747,-151.0,0.00013657,2]
[339745213,1727931038758,-1271.851053,0.00013657,2]
[339745214,1727931038768,-151.0,0.00013657,2]
[339745215,1727931038778,-151.0,0.00013657,2]
[339745216,1727931038787,-151.0,0.00013657,2]
[339745217,1727931038797,-151.829702,0.00013657,2]
[339745218,1727931038806,-151.0,0.00013657,2]
[339745219,1727931038815,-151.0,0.00013657,2]
[339745220,1727931038825,-152.463246,0.00013657,2]
[339745221,1727931038834,-428.078381,0.00013657,2]
[339745222,1727931038845,-428.078381,0.00013657,2]
[339745223,1727931038856,-456.554286,0.00013657,2]
[339745224,1727931038866,-456.554286,0.00013657,2]
[339745225,1727931038875,-151.0,0.00013657,2]
[339745226,1727931038885,-151.0,0.00013657,2]
[339745227,1727931038895,-151.0,0.00013657,2]
[339745228,1727931038905,-151.0,0.00013657,2]
[339745229,1727931038916,-199.779283,0.00013657,2]
[339745230,1727931038925,-199.779283,0.00013657,2]
[339745231,1727931038935,-151.0,0.00013657,2]
[339745232,1727931038944,-151.12438,0.00013657,2]
[339745233,1727931038954,-2474.109631,0.00013657,2]
[339745234,1727931038964,-194.869054,0.00013657,2]
[339745235,1727931038974,-151.0,0.00013657,2]
[339745236,1727931038984,-194.869054,0.00013657,2]
[339745237,1727931038993,-2474.109631,0.00013657,2]
[339745238,1727931039002,-151.0,0.00013657,2]
[339745239,1727931039011,-151.0,0.00013657,2]
[339745240,1727931039020,-381.254637,0.00013657,2]
[339745241,1727931039030,-381.254637,0.00013657,2]
[339745242,1727931039039,-254.876862,0.00013657,2]
[339745243,1727931039048,-254.876862,0.00013657,2]
[339745244,1727931039057,-151.0,0.00013657,2]
[339745245,1727931039224,-563.756392,0.00013657,2]
[339745246,1727931039236,-563.756392,0.00013657,2]
[339745247,1727931039248,-227.077203,0.00013657,2]
[339745248,1727931039258,-911.789489,0.00013657,2]
[339745249,1727931039270,-227.077203,0.00013657,2]
[339745250,1727931039280,-911.789489,0.00013657,2]
[339745251,1727931039290,-29676.0446421,0.00013657,2]
[339745252,1727931039301,-10800.2680376,0.00013657,2]
[339745253,1727931039311,-89028.1339262,0.00013658,2]
[339745254,1727931039320,-32400.8041127,0.00013658,2]
[339745255,1727931039331,-151.0,0.00013658,2]
[339745256,1727931039340,-151.0,0.00013658,2]
[339745257,1727931039349,-1308.084032,0.00013658,2]
[339745258,1727931039359,-151.0,0.00013658,2]
[339745259,1727931039368,-1308.084032,0.00013658,2]
[339745260,1727931039377,-151.0,0.00013658,2]
[339745261,1727931039386,-151.0,0.00013658,2]
[339745262,1727931039395,-1308.084032,0.00013658,2]
[339745263,1727931039404,-151.0,0.00013658,2]
[339745264,1727931039415,-1308.084032,0.00013658,2]
[339745265,1727931039424,-151.0,0.00013658,2]
[339745266,1727931039433,-151.0,0.00013658,2]
[339745267,1727931039442,-151.0,0.00013658,2]
[339745268,1727931039452,-222.122543,0.00013658,2]
[339745269,1727931039462,-222.122543,0.00013658,2]
[339745270,1727931039474,-151.652082,0.00013658,2]
[339745271,1727931039483,-151.886498,0.00013658,2]
[339745272,1727931039492,-1148.199051,0.00013658,2]
[339745273,1727931039502,-151.0,0.00013658,2]
[339745274,1727931039513,-1148.199051,0.00013658,2]
[339745275,1727931039523,-215.074131,0.00013658,2]
[339745276,1727931039532,-215.074131,0.00013658,2]
[339745277,1727931039541,-151.0,0.00013658,2]
[339745278,1727931039552,-151.0,0.00013658,2]
[339745279,1727931039561,-151.0,0.00013658,2]
[339745280,1727931039570,-151.0,0.00013658,2]
[339745281,1727931039580,-151.0,0.00013658,2]
[339745282,1727931039589,-151.0,0.00013658,2]
[339745283,1727931039599,-151.0,0.00013658,2]
[339745284,1727931039610,-151.0,0.00013658,2]
[339745285,1727931039620,-468.240029,0.00013658,2]
[339745286,1727931039629,-468.240029,0.00013658,2]
[339745287,1727931039639,-981.714502,0.00013658,2]
[339745288,1727931039648,-981.714502,0.00013658,2]
[339745289,1727931039658,-1271.851053,0.00013658,2]
[339745290,1727931039667,-1271.851053,0.00013658,2]
[339745291,1727931039677,-151.0,0.00013658,2]
[339745292,1727931039687,-1271.851053,0.00013658,2]
[339745293,1727931039699,-1271.851053,0.00013658,2]
[339745294,1727931039709,-151.0,0.00013658,2]
[339745295,1727931039720,-151.0,0.00013658,2]
[339745296,1727931039732,-151.0,0.00013658,2]
[339745297,1727931039743,-151.0,0.00013658,2]
[339745298,1727931039754,-151.0,0.00013658,2]
[339745299,1727931039765,-151.0,0.00013658,2]
[339745300,1727931039775,-151.0,0.00013658,2]
[339745301,1727931039784,-151.0,0.00013658,2]
[339745302,1727931039794,-151.0,0.00013658,2]
[339745303,1727931039803,-151.0,0.00013658,2]
[339745304,1727931039813,-151.0,0.00013658,2]
[339745305,1727931039823,-151.0,0.00013658,2]
[339745306,1727931039833,-243.436761,0.00013658,2]
[339745307,1727931039843,-428.078381,0.00013658,2]
[339745308,1727931039853,-428.078381,0.00013658,2]
[339745309,1727931039862,-428.078381,0.00013658,2]
[339745310,1727931039872,-428.078381,0.00013658,2]
[339745311,1727931039881,-428.078381,0.00013658,2]
[339745312,1727931039891,-428.078381,0.00013658,2]
[339745313,1727931039900,-456.554286,0.00013658,2]
[339745314,1727931039910,-456.554286,0.00013658,2]
[339745315,1727931039919,-456.554286,0.00013658,2]
[339745316,1727931039929,-456.554286,0.00013658,2]
[339745317,1727931039938,-456.554286,0.00013658,2]
[339745318,1727931039948,-456.554286,0.00013658,2]
[339745319,1727931039958,-151.0,0.00013658,2]
[339745320,1727931039968,-152.112788,0.00013658,2]
[339745321,1727931039977,-151.0,0.00013658,2]
[339745323,1727931039987,-151.0,0.00013658,2]
[339745325,1727931039996,-151.0,0.00013658,2]
[339745327,1727931040006,-151.0,0.00013658,2]
[339745329,1727931040016,-151.0,0.00013658,2]
[339745331,1727931040026,-239.779144,0.00013658,2]
[339745333,1727931040036,-151.0,0.00013658,2]
[339745335,1727931040045,-151.0,0.00013658,2]
[339745337,1727931040055,-206.106965,0.00013658,2]
[339745339,1727931040065,-199.779283,0.00013658,2]
[339745341,1727931040075,-199.779283,0.00013658,2]
[339745343,1727931040084,-199.779283,0.00013658,2]
[339745345,1727931040094,-199.779283,0.00013658,2]
[339745347,1727931040104,-199.779283,0.00013658,2]
[339745349,1727931040114,-199.779283,0.00013658,2]
[339745351,1727931040125,-151.0,0.00013658,2]
[339745353,1727931040135,-153.604737,0.00013658,2]
[339745355,1727931040145,-2474.109631,0.00013658,2]
[339745356,1727931040156,-2474.109631,0.00013658,2]
[339745358,1727931040167,-2474.109631,0.00013658,2]
[339745359,1727931040178,-194.869054,0.00013658,2]
[339745360,1727931040189,-194.869054,0.00013658,2]
[339745361,1727931040199,-194.869054,0.00013658,2]
[339745363,1727931040211,-151.0,0.00013658,2]
[339745365,1727931040222,-151.0,0.00013658,2]
[339745366,1727931040231,-151.0,0.00013658,2]
[339745367,1727931040241,-194.869054,0.00013658,2]
[339745368,1727931040251,-194.869054,0.00013658,2]
[339745369,1727931040260,-194.869054,0.00013658,2]
[339745370,1727931040270,-2474.109631,0.00013658,2]
[339745371,1727931040279,-2474.109631,0.00013658,2]
[339745372,1727931040289,-2474.109631,0.00013658,2]
[339745373,1727931040303,-151.0,0.00013658,2]
[339745374,1727931040313,-151.0,0.00013658,2]
[339745375,1727931040323,-151.0,0.00013658,2]
[339745376,1727931040332,-151.0,0.00013658,2]
[339745377,1727931040342,-381.254637,0.00013658,2]
[339745378,1727931040351,-381.254637,0.00013658,2]
[339745379,1727931040361,-381.254637,0.00013658,2]
[339745380,1727931040373,-381.254637,0.00013658,2]
[339745381,1727931040383,-381.254637,0.00013658,2]
[339745382,1727931040395,-381.254637,0.00013658,2]
[339745383,1727931040407,-254.876862,0.00013658,2]
[339745384,1727931040418,-254.876862,0.00013658,2]
[339745385,1727931040431,-254.876862,0.00013658,2]
[339745386,1727931040442,-254.876862,0.00013658,2]
[339745387,1727931040453,-254.876862,0.00013658,2]
[339745388,1727931040464,-254.876862,0.00013658,2]
[339745389,1727931040474,-151.0,0.00013658,2]
[339745390,1727931040484,-151.0,0.00013658,2]
[339745391,1727931040495,-151.0,0.00013658,2]
[339745392,1727931040509,-151.0,0.00013658,2]
[339745393,1727931040521,-563.756392,0.00013658,2]
[339745394,1727931040530,-563.756392,0.00013658,2]
[339745395,1727931040540,-563.756392,0.00013658,2]
[339745396,1727931040550,-563.756392,0.00013658,2]
[339745397,1727931040563,-563.756392,0.00013658,2]
[339745398,1727931040581,-563.756392,0.00013658,2]
[339745399,1727931040597,-227.077203,0.00013658,2]
[339745400,1727931040615,-227.077203,0.00013658,2]
[339745401,1727931040632,-227.077203,0.00013658,2]
[339745402,1727931040649,-911.789489,0.00013658,2]
[339745403,1727931040665,-227.077203,0.00013658,2]
[339745404,1727931040680,-911.789489,0.00013658,2]
[339745405,1727931040697,-911.789489,0.00013658,2]
[339745406,1727931040713,-227.077203,0.00013658,2]
[339745407,1727931040727,-227.077203,0.00013658,2]
[339745408,1727931040740,-227.077203,0.00013658,2]
[339745409,1727931040755,-227.077203,0.00013658,2]
[339745410,1727931040769,-911.789489,0.00013658,2]
[339745411,1727931040782,-911.789489,0.00013658,2]
[339745412,1727931040796,-911.789489,0.00013658,2]
[339745413,1727931040809,-29676.0446421,0.00013658,2]